bitfinex/quotes_SOLUSD_20260203
["timestamp","ask_amount","ask_price","bid_price","bid_amount"]
[1770143282051,6.36081543,98.236,98.19,14.23557115]
[1770143282263,6.36081543,98.236,98.174,4.15768229]
[1770143282437,14.23557115,98.25,98.2,14.23557115]
[1770143282637,6.35246682,98.319,98.22,14.23557115]
[1770143282936,6.35246682,98.319,98.199,4.15768229]
[1770143282937,4.11116804,98.269,98.199,4.15768229]
[1770143283260,14.23557115,98.25,98.191,4.15768229]
[1770143283443,4.11116804,98.259,98.21,14.23557115]
[1770143283636,14.23557115,98.24,98.191,4.15768229]
[1770143283857,14.23557115,98.24,98.14,11.36984445]
[1770143283858,14.23557115,98.21,98.157,4.15768229]
[1770143284062,14.23557115,98.21,98.14,11.36984445]
[1770143284063,4.11116804,98.241,98.2,14.23557115]
[1770143284556,50.484889,98.326,98.14,11.36984445]
[1770143284557,4.11116804,98.209,98.16,14.23557115]
[1770143284955,4.11116804,98.209,98.157,4.15768229]
[1770143284956,14.23557115,98.19,98.141,4.15768229]
[1770143285166,14.23557115,98.16,98.14,11.36984445]
[1770143285362,4.27527085,98.192,98.068,4.15768229]
[1770143285363,4.11116804,98.146,98.068,4.15768229]
[1770143285547,8.66168195,98.207,98.054,11.36984445]
[1770143285548,4.11116804,98.206,98.11,14.23557115]
[1770143285857,14.23557115,98.16,98.11,18.39325344]
[1770143286062,14.23557115,98.19,98.14,14.23557115]
[1770143286366,14.23557115,98.17,98.122,4.15768229]
[1770143286543,4.11116804,98.179,98.13,14.23557115]
[1770143286742,4.11116804,98.179,98.14,14.23557115]
[1770143286942,4.11116804,98.219,98.155,4.15768229]
[1770143287144,24.70689388,98.336,98.093,4.27527085]
[1770143287145,4.11116804,98.275,98.211,4.15768229]
[1770143287346,5.35411725,98.356,98.15,14.23557115]
[1770143287347,4.11116804,98.269,98.22,14.23557115]
[1770143287648,28.34,98.355,98.174,4.15768229]
[1770143287649,4.11116804,98.229,98.174,4.15768229]
[1770143287955,4.11116804,98.229,98.18,14.23557115]
[1770143288160,4.11116804,98.219,98.17,14.23557115]
[1770143288362,14.23557115,98.23,98.153,4.15768229]
[1770143288576,14.23557115,98.19,98.14,14.23557115]
[1770143288747,4.11116804,98.263,98.151,4.15768229]
[1770143289062,14.23557115,98.21,98.17,4.15768229]
[1770143289272,14.23557115,98.19,98.153,4.15768229]
[1770143289567,4.11116804,98.17,98.119,4.15768229]
[1770143289870,4.11116804,98.17,98.009,40.81239744]
[1770143289871,4.11116804,98.17,98.12,18.39325344]
[1770143290062,18.34673919,98.17,98.12,18.39325344]
[1770143290669,4.11116804,98.189,98.14,14.23557115]
[1770143290847,14.23557115,98.16,98.113,4.15768229]
[1770143291046,5.36086188,98.257,98.064,50.94887204]
[1770143291047,14.23557115,98.15,98.1,14.23557115]
[1770143291249,4.11116804,98.156,98.101,4.15768229]
[1770143291468,14.23557115,98.16,98.11,14.23557115]
[1770143291660,14.23557115,98.18,98.13,14.23557115]
[1770143292052,4.27527085,98.193,98.091,4.15768229]
[1770143292053,14.23557115,98.14,98.091,4.15768229]
[1770143292367,14.23557115,98.15,98.101,4.15768229]
[1770143292581,14.23557115,98.13,98.101,4.15768229]
[1770143292871,14.23557115,98.16,98.101,1.81585335]
[1770143293084,14.23557115,98.15,98.1,14.23557115]
[1770143293374,14.23557115,98.16,98.1,14.23557115]
[1770143293949,4.11116804,98.198,98.12,14.23557115]
[1770143294171,14.23557115,98.17,98.12,14.23557115]
[1770143294386,14.23557115,98.15,98.1,14.23557115]
[1770143294598,5.36086188,98.257,98.08,28.34]
[1770143294599,14.23557115,98.14,98.081,50.54706514]
[1770143294765,14.23557115,98.13,98.082,4.15768229]
[1770143294960,9.73557115,98.14,98.092,1.38050714]
[1770143295166,4.5,98.183,98.087,0.14216157]
[1770143295364,5.36086188,98.266,98.087,0.14216157]
[1770143295365,14.23557115,98.18,98.093,5.50302345]
[1770143295668,14.23557115,98.18,98.083,4.27527085]
[1770143295669,4.5,98.168,98.04,14.23557115]
[1770143296001,37.00935942,98.295,98.035,17.39825341]
[1770143296002,4.5,98.144,98.035,17.39825341]
[1770143296166,50.99074377,98.251,98.035,17.39825341]
[1770143296167,4.5,98.177,98.1,14.23557115]
[1770143296491,14.23557115,98.17,98.12,14.23557115]
[1770143296710,14.23557115,98.16,98.073,0.14216157]
[1770143296984,4.5,98.169,98.1,14.23557115]
[1770143297169,14.23557115,98.15,98.1,14.23557115]
[1770143297373,4.5,98.169,98.11,14.23557115]
[1770143298098,14.23557115,98.16,98.11,14.23557115]
[1770143298267,14.23557115,98.15,98.09,14.23557115]
[1770143298463,14.23557115,98.15,98.068,0.14216157]
[1770143298464,14.23557115,98.16,98.1,14.23557115]
[1770143298772,4.5,98.169,98.12,14.23557115]
[1770143298974,4.5,98.169,98.07,32.59527085]
[1770143298975,4.5,98.185,98.13,14.23557115]
[1770143299365,64.77248963,98.28,98.086,0.14216157]
[1770143299366,14.23557115,98.21,98.105,5.50302345]
[1770143299576,14.23557115,98.21,98.16,14.23557115]
[1770143299780,14.23557115,98.21,98.109,4.41743242]
[1770143300084,14.23557115,98.21,98.15,14.23557115]
[1770143300469,14.23557115,98.19,98.13,14.23557115]
[1770143300675,14.23557115,98.19,98.14,14.23557115]
[1770143301076,14.23557115,98.18,98.13,14.23557115]
[1770143301777,4.5,98.193,98.11,14.23557115]
[1770143301977,14.23557115,98.16,98.11,14.23557115]
[1770143302172,14.23557115,98.17,98.11,14.23557115]
[1770143302483,4.5,98.193,98.12,14.23557115]
[1770143302484,14.23557115,98.18,98.12,14.23557115]
[1770143302791,14.23557115,98.17,98.12,14.23557115]
[1770143302990,14.23557115,98.17,98.11,14.23557115]
[1770143303377,14.23557115,98.15,98.101,0.14216157]
[1770143303572,14.23557115,98.16,98.1,14.23557115]
[1770143303887,14.23557115,98.18,98.12,14.23557115]
[1770143304094,14.23557115,98.17,98.12,14.23557115]
[1770143304883,14.23557115,98.16,98.11,14.23557115]
[1770143305084,4.27527085,98.22,98.093,28.32]
[1770143305085,14.23557115,98.15,98.093,28.32]
[1770143305286,14.23557115,98.15,98.1,14.23557115]
[1770143305614,14.23557115,98.14,98.093,28.32]
[1770143306077,14.23557115,98.14,98.08,14.23557115]
[1770143306277,14.23557115,98.15,98.09,14.23557115]
[1770143306495,4.27527085,98.21,98.1,14.23557115]
[1770143306496,14.23557115,98.16,98.1,14.23557115]
[1770143306688,14.23557115,98.14,98.091,0.14216157]
[1770143306894,4.5,98.178,98.11,14.23557115]
[1770143306895,14.23557115,98.17,98.11,14.23557115]
[1770143307088,4.5,98.178,98.12,14.23557115]
[1770143307296,4.5,98.21,98.15,14.23557115]
[1770143307502,14.23557115,98.18,98.133,28.32]
[1770143307676,0.2,98.29,98.133,28.32]
[1770143307677,14.23557115,98.17,98.133,28.32]
[1770143307879,14.23557115,98.19,98.14,14.23557115]
[1770143308088,14.23557115,98.2,98.15,14.23557115]
[1770143308402,14.23557115,98.21,98.15,14.23557115]
[1770143308796,14.23557115,98.19,98.142,28.32]
[1770143309097,6.34060119,98.278,98.16,14.23557115]
[1770143309098,14.23557115,98.21,98.16,14.23557115]
[1770143309303,14.23557115,98.21,98.15,14.23557115]
[1770143309505,14.23557115,98.2,98.15,14.23557115]
[1770143309683,14.23557115,98.21,98.15,14.23557115]
[1770143309886,14.23557115,98.21,98.16,14.23557115]
[1770143310483,14.23557115,98.19,98.123,0.14216157]
[1770143310690,5.36086188,98.276,98.123,0.14216157]
[1770143310691,14.23557115,98.2,98.14,14.23557115]
[1770143310902,14.23557115,98.21,98.15,14.23557115]
[1770143311207,14.23557115,98.2,98.15,14.23557115]
[1770143311407,14.23557115,98.21,98.16,14.23557115]
[1770143311579,4.5,98.23,98.155,0.14216157]
[1770143311784,14.23557115,98.22,98.16,14.23557115]
[1770143312188,14.23557115,98.21,98.15,14.23557115]
[1770143312489,14.23557115,98.21,98.141,28.32]
[1770143312490,14.23557115,98.21,98.16,14.23557115]
[1770143312685,14.23557115,98.21,98.15,14.23557115]
[1770143312893,14.23557115,98.19,98.141,28.32]
[1770143313084,4.5,98.215,98.141,28.32]
[1770143313295,14.23557115,98.2,98.141,28.32]
[1770143313492,4.5,98.179,98.09,5.36086188]
[1770143313704,4.5,98.195,98.114,10.19221974]
[1770143313910,14.23557115,98.2,98.15,14.23557115]
[1770143314089,14.23557115,98.2,98.141,0.14216157]
[1770143314291,14.23557115,98.18,98.131,0.14216157]
[1770143314489,4.5,98.198,98.121,0.14216157]
[1770143314490,14.23557115,98.17,98.121,0.14216157]
[1770143315092,4.5,98.185,98.117,0.14216157]
[1770143315093,14.23557115,98.16,98.117,0.14216157]
[1770143315412,14.23557115,98.18,98.13,14.23557115]
[1770143315588,14.23557115,98.19,98.131,0.14216157]
[1770143315792,14.23557115,98.18,98.131,0.14216157]
[1770143316211,14.23557115,98.18,98.124,0.14216157]
[1770143316402,4.5,98.185,98.13,14.23557115]
[1770143316601,18.73557115,98.2,98.141,0.14216157]
[1770143316795,14.23557115,98.21,98.15,14.23557115]
[1770143316994,14.23557115,98.19,98.143,0.14216157]
[1770143317196,14.23557115,98.2,98.15,14.23557115]
[1770143317419,14.23557115,98.2,98.142,28.32]
[1770143317420,14.23557115,98.18,98.142,28.32]
[1770143317607,14.23557115,98.2,98.142,28.32]
[1770143318099,14.23557115,98.2,98.143,0.14216157]
[1770143318314,4.5,98.203,98.15,14.23557115]
[1770143318499,14.19470995,98.2,98.15,14.19470995]
[1770143318810,14.19470995,98.21,98.151,0.14216157]
[1770143319011,14.19470995,98.19,98.142,28.32]
[1770143319314,4.27527085,98.244,98.15,14.19470995]
[1770143319315,14.19470995,98.2,98.15,14.19470995]
[1770143319514,14.19470995,98.2,98.142,28.32]
[1770143319515,14.19470995,98.19,98.143,0.14216157]
[1770143319713,4.5,98.213,98.142,28.32]
[1770143319916,14.19470995,98.19,98.142,28.32]
[1770143320414,4.5,98.179,98.1,14.19470995]
[1770143320645,14.19470995,98.15,98.113,28.32]
[1770143320918,14.19470995,98.12,98.065,50.8099743]
[1770143321221,14.19470995,98.12,98.02,0.1]
[1770143321222,14.19470995,98.11,98.063,50.80760517]
[1770143321408,50.36625322,98.229,98.059,28.32]
[1770143321409,14.19470995,98.09,98.059,28.32]
[1770143321601,14.19470995,98.1,98.059,28.32]
[1770143321802,14.19470995,98.11,98.055,50.17810858]
[1770143322008,14.19470995,98.12,98.06,14.19470995]
[1770143322209,14.19470995,98.12,98.061,0.14216157]
[1770143322407,14.19470995,98.11,98.061,0.14216157]
[1770143322609,14.19470995,98.1,98.056,28.32]
[1770143322815,4.5,98.117,98.056,28.32]
[1770143323016,14.19470995,98.08,98.056,28.32]
[1770143323202,14.19470995,98.1,98.056,28.32]
[1770143323405,14.19470995,98.11,98.06,14.19470995]
[1770143323922,14.19470995,98.11,98.056,28.32]
[1770143324216,14.19470995,98.1,98.056,28.32]
[1770143324937,14.19470995,98.08,98.056,28.32]
[1770143325225,14.19470995,98.07,98.036,17.39825341]
[1770143325402,14.19470995,98.05,98.036,17.39825341]
[1770143325708,14.19470995,98.05,97.976,25.5163964]
[1770143325709,4.45,98.065,97.991,0.1]
[1770143325908,4.45,98.093,98.031,0.1]
[1770143326123,4.45,98.093,98.04,14.19470995]
[1770143326321,4.45,98.089,98.04,14.19470995]
[1770143326625,14.19470995,98.1,98.05,14.19470995]
[1770143326831,14.19470995,98.09,98.042,0.1]
[1770143327014,4.45,98.099,98.042,0.1]
[1770143327218,18.64470995,98.08,98.03,14.19470995]
[1770143327517,4.45,98.079,98.02,14.19470995]
[1770143327728,14.19470995,98.07,98.02,14.19470995]
[1770143327930,4.45,98.079,98.02,14.19470995]
[1770143328153,4.45,98.079,98.021,0.1]
[1770143328308,4.45,98.079,98.03,14.19470995]
[1770143328509,4.45,98.079,98.029,0.1]
[1770143328822,4.45,98.079,97.983,50.66921848]
[1770143328823,4.45,98.107,98.042,0.1]
[1770143329024,14.19470995,98.1,98.042,0.1]
[1770143329204,14.19470995,98.08,98.03,28.32]
[1770143329403,4.45,98.089,98.031,0.14216157]
[1770143329913,4.45,98.079,98.03,28.32]
[1770143330227,4.45,98.079,98.03,42.51470995]
[1770143330827,5.36086188,98.168,98.03,42.51470995]
[1770143330828,5.36086188,98.164,98.034,4.10125249]
[1770143331010,4.27527085,98.157,98.041,4.10125249]
[1770143331208,14.19470995,98.09,98.041,4.10125249]
[1770143331518,14.19470995,98.09,98.031,4.10125249]
[1770143331716,14.19470995,98.08,98.031,4.10125249]
[1770143332428,14.19470995,98.07,98.031,4.10125249]
[1770143332618,4.27527085,98.147,98.031,4.10125249]
[1770143332813,14.19470995,98.08,98.031,4.10125249]
[1770143334128,4.1486159,98.083,98.031,4.10125249]
[1770143334726,4.1486159,98.083,98.04,14.19470995]
[1770143335127,14.19470995,98.09,98.041,4.29566115]
[1770143335337,14.19470995,98.08,98.041,4.29566115]
[1770143335726,4.15009558,98.088,98.041,4.29566115]
[1770143336031,4.15009558,98.102,98.051,4.29566115]
[1770143336224,14.19470995,98.1,98.051,4.29566115]
[1770143336934,4.15009558,98.102,98.051,4.29566115]
[1770143337332,14.19470995,98.1,98.051,4.29566115]
[1770143337534,14.19470995,98.09,98.051,4.29566115]
[1770143337936,14.19470995,98.08,98.042,28.34]
[1770143338631,4.15009558,98.1,98.042,28.34]
[1770143340535,4.15009558,98.1,98.043,4.29566115]
[1770143340833,14.19470995,98.07,98.042,28.34]
[1770143341038,14.19470995,98.15,98.003,17.49652036]
[1770143341039,4.15009558,98.049,98.003,17.49652036]
[1770143341241,14.19470995,98.04,98.003,17.49652036]
[1770143341435,14.19470995,98.02,98.003,17.49652036]
[1770143341747,14.19470995,98.05,98.004,4.29566115]
[1770143342524,9.36327063,98.07,98.021,4.29566115]
[1770143342722,9.36327063,98.09,98.04,9.36327063]
[1770143342954,9.36327063,98.09,98.005,10.20356104]
[1770143342955,9.36327063,98.1,98.05,9.36327063]
[1770143343253,9.36327063,98.06,97.99,5.43298695]
[1770143343419,9.36327063,98.01,97.99,5.43298695]
[1770143343922,9.36327063,98.01,97.99,0.1]
[1770143344522,4.27527085,98.064,97.991,4.29566115]
[1770143344523,9.36327063,98.02,97.991,4.29566115]
[1770143345241,9.36327063,98.02,97.99,0.1]
[1770143345439,9.36327063,98.0,97.99,0.1]
[1770143345636,9.36327063,98.01,97.99,0.1]
[1770143345943,9.36327063,98.02,97.99,0.1]
[1770143346142,9.36327063,98.03,97.991,4.29566115]
[1770143346746,9.36327063,98.03,97.99,0.1]
[1770143346747,9.36327063,98.08,98.021,4.29566115]
[1770143347046,9.36327063,98.07,98.021,4.29566115]
[1770143347229,9.36327063,98.06,98.021,4.29566115]
[1770143347426,4.10859462,98.082,98.021,4.29566115]
[1770143347427,9.36327063,98.05,98.021,4.29566115]
[1770143348031,4.10859462,98.099,98.021,4.29566115]
[1770143348239,9.36327063,98.07,98.021,4.29566115]
[1770143348445,14.2351378,98.05,98.001,4.29566115]
[1770143348644,14.2351378,98.03,98.001,4.29566115]
[1770143349032,14.2351378,98.03,97.99,0.1]
[1770143349033,14.2351378,98.02,97.99,0.1]
[1770143349345,4.10859462,98.081,97.991,4.29566115]
[1770143349528,14.2351378,98.04,97.991,4.29566115]
[1770143349845,14.2351378,98.02,97.991,4.29566115]
[1770143350035,14.2351378,98.03,97.991,4.29566115]
[1770143350748,4.10859462,98.029,97.99,0.1]
[1770143350939,14.2351378,98.01,97.99,0.1]
[1770143351338,14.2351378,98.02,97.99,0.1]
[1770143353360,4.27527085,98.072,97.99,4.39566115]
[1770143353361,14.2351378,98.03,97.99,4.39566115]
[1770143354233,4.10859462,98.056,97.991,4.29566115]
[1770143354534,14.2351378,98.05,97.991,4.29566115]
[1770143354744,14.2351378,98.05,98.001,4.29566115]
[1770143355055,14.2351378,98.06,98.001,4.29566115]
[1770143355265,14.2351378,98.05,98.001,4.29566115]
[1770143355554,4.27527085,98.094,97.965,4.29566115]
[1770143355932,14.2351378,98.0,97.965,4.29566115]
[1770143356260,14.2351378,97.99,97.965,4.29566115]
[1770143356431,51.97839062,98.098,97.952,5.33467649]
[1770143356432,14.2351378,97.98,97.953,4.29566115]
[1770143356637,14.2351378,97.98,97.926,4.29566115]
[1770143356844,14.2351378,97.98,97.847,19.62]
[1770143356845,14.2351378,97.94,97.921,8.54000181]
[1770143357149,14.2351378,97.93,97.92,0.06030501]
[1770143357343,8.33477005,98.0,97.871,4.29566115]
[1770143357344,3.89050564,97.929,97.871,4.29566115]
[1770143357548,3.89050564,97.964,97.881,4.29566115]
[1770143357751,14.2351378,97.94,97.891,4.29566115]
[1770143358246,3.89050564,97.964,97.901,4.29566115]
[1770143358452,14.2351378,97.96,97.911,4.29566115]
[1770143358634,3.89050564,97.979,97.87,5.29875434]
[1770143358635,14.2351378,97.95,97.921,4.29566115]
[1770143358832,14.2351378,97.94,97.891,4.29566115]
[1770143359051,4.27527085,97.993,97.87,5.29875434]
[1770143359052,14.2351378,97.91,97.871,4.29566115]
[1770143359429,3.89050564,97.936,97.871,4.29566115]
[1770143359634,14.2351378,97.92,97.871,4.29566115]
[1770143360037,14.2351378,97.91,97.871,4.29566115]
[1770143360259,14.2351378,97.94,97.881,4.29566115]
[1770143360448,14.2351378,97.91,97.86,4.20981087]
[1770143360635,14.2351378,97.93,97.881,4.42055992]
[1770143360833,19.62,98.131,97.871,4.42055992]
[1770143360834,4.27527085,97.973,97.871,4.42055992]
[1770143361055,14.2351378,97.93,97.881,4.42055992]
[1770143361230,3.89050564,97.937,97.881,4.42055992]
[1770143361433,14.2351378,97.92,97.881,4.42055992]
[1770143361633,14.2351378,97.93,97.881,4.42055992]
[1770143362246,3.89050564,97.937,97.881,4.42055992]
[1770143362447,14.2351378,97.92,97.881,4.42055992]
[1770143362651,3.89050564,97.982,97.891,4.42055992]
[1770143362834,14.2351378,97.95,97.901,4.42055992]
[1770143363344,14.2351378,97.96,97.911,4.42055992]
[1770143363542,14.2351378,97.95,97.911,4.42055992]
[1770143363732,3.89050564,97.979,97.911,4.42055992]
[1770143363938,3.89050564,97.979,97.921,4.42055992]
[1770143364137,14.2351378,97.97,97.921,4.42055992]
[1770143364344,14.2351378,97.99,97.941,4.42055992]
[1770143364748,14.2351378,98.0,97.95,14.2351378]
[1770143365068,14.2351378,98.01,97.961,4.42055992]
[1770143365433,14.2351378,97.99,97.961,4.42055992]
[1770143365850,14.2351378,98.0,97.961,4.42055992]
[1770143366732,3.89050564,98.086,97.98,14.2351378]
[1770143366969,14.2351378,98.01,97.969,4.33223839]
[1770143367256,14.2351378,98.01,97.904,10.21407747]
[1770143367257,14.2351378,97.99,97.941,4.33223839]
[1770143367444,14.2351378,97.98,97.941,4.33223839]
[1770143367658,14.2351378,97.97,97.941,4.33223839]
[1770143368035,3.89050564,97.998,97.941,4.33223839]
[1770143368229,5.36086188,98.065,97.941,4.33223839]
[1770143368230,14.2351378,97.99,97.941,4.33223839]
[1770143368436,3.89050564,98.001,97.941,4.33223839]
[1770143368640,9.37636828,97.99,97.941,4.33223839]
[1770143368855,9.37636828,97.98,97.941,4.33223839]
[1770143369760,9.37636828,97.96,97.925,4.33223839]
[1770143370059,9.37636828,97.97,97.925,4.33223839]
[1770143370260,9.37636828,97.99,97.931,4.33223839]
[1770143370461,9.37636828,97.98,97.941,4.33223839]
[1770143370673,9.37636828,97.99,97.941,4.33223839]
[1770143371165,9.37636828,97.98,97.941,4.33223839]
[1770143371370,9.37636828,97.99,97.941,4.33223839]
[1770143372344,9.37636828,97.99,97.887,35.1755528]
[1770143372345,9.37636828,98.01,97.951,4.33223839]
[1770143372645,9.37636828,98.0,97.951,4.33223839]
[1770143372858,9.37636828,98.02,97.97,9.37636828]
[1770143373060,28.38,98.102,97.951,4.33223839]
[1770143373061,9.37636828,97.99,97.951,4.33223839]
[1770143373360,28.38,98.102,97.936,4.33223839]
[1770143373361,9.37636828,97.97,97.936,4.33223839]
[1770143373662,9.37636828,97.97,97.86,1.02186797]
[1770143373663,9.37636828,97.95,97.892,4.33223839]
[1770143373847,9.37636828,97.95,97.901,4.33223839]
[1770143374042,9.37636828,97.97,97.911,4.33223839]
[1770143374259,9.37636828,97.97,97.891,28.38]
[1770143374260,9.37636828,97.98,97.921,4.33223839]
[1770143374465,9.37636828,97.97,97.921,4.33223839]
[1770143374872,9.37636828,97.96,97.921,4.33223839]
[1770143375061,9.37636828,97.97,97.921,4.33223839]
[1770143375657,9.37636828,97.98,97.93,9.37636828]
[1770143375864,9.37636828,97.99,97.941,4.33223839]
[1770143376274,9.37636828,97.98,97.941,4.33223839]
[1770143377064,9.37636828,97.97,97.941,4.33223839]
[1770143377264,9.37636828,97.98,97.941,4.33223839]
[1770143378477,9.37845677,97.97,97.941,4.33223839]
[1770143378685,9.37845677,97.96,97.921,4.33223839]
[1770143378876,9.37845677,97.95,97.909,4.33223839]
[1770143379078,3.89050564,97.959,97.909,4.33223839]
[1770143379079,9.37845677,97.94,97.909,4.33223839]
[1770143379281,3.89050564,97.945,97.881,4.33223839]
[1770143379466,3.89050564,97.945,97.891,4.33223839]
[1770143379662,3.89050564,97.949,97.891,4.33223839]
[1770143379983,9.37845677,97.94,97.891,4.33223839]
[1770143380388,9.37845677,97.96,97.911,4.33223839]
[1770143380592,9.37845677,98.0,97.859,5.29965422]
[1770143380593,9.37845677,97.95,97.898,4.33223839]
[1770143381290,3.89050564,97.959,97.911,4.33223839]
[1770143382294,9.37845677,97.96,97.911,4.33223839]
[1770143382584,3.89050564,97.969,97.911,4.33223839]
[1770143382777,9.37845677,97.96,97.911,4.33223839]
[1770143382974,3.89050564,97.969,97.911,4.33223839]
[1770143383164,3.89050564,97.969,97.921,4.33223839]
[1770143383586,3.89050564,98.042,97.931,4.33223839]
[1770143383877,9.37845677,97.98,97.931,4.33223839]
[1770143384566,9.37845677,97.97,97.931,4.33223839]
[1770143384766,9.37845677,97.98,97.931,4.33223839]
[1770143385582,3.89050564,97.975,97.876,4.33223839]
[1770143385785,3.89050564,97.938,97.881,4.33223839]
[1770143386082,9.37845677,97.93,97.881,4.33223839]
[1770143386583,3.89050564,97.996,97.881,4.33223839]
[1770143386787,3.89050564,97.96,97.891,4.33223839]
[1770143386977,9.37845677,97.94,97.891,4.33223839]
[1770143387282,9.37845677,97.93,97.891,4.33223839]
[1770143387473,9.37845677,97.94,97.891,4.33223839]
[1770143387680,9.37845677,97.93,97.891,4.33223839]
[1770143387979,3.89050564,97.947,97.891,4.33223839]
[1770143388206,9.37845677,97.94,97.891,4.33223839]
[1770143389480,3.89050564,97.96,97.891,4.33223839]
[1770143389673,9.37845677,97.95,97.901,4.33223839]
[1770143389876,9.37845677,97.97,97.92,9.37845677]
[1770143390176,9.37845677,97.97,97.921,4.33223839]
[1770143390376,3.89050564,97.986,97.931,4.36662546]
[1770143391079,3.89050564,97.986,97.93,9.37845677]
[1770143391080,3.89050564,97.986,97.941,4.36662546]
[1770143391467,9.37845677,97.98,97.941,4.36662546]
[1770143392093,5.36086188,98.057,97.941,4.36662546]
[1770143392094,9.37845677,98.0,97.941,4.36662546]
[1770143392258,9.37845677,97.99,97.941,4.36662546]
[1770143392463,3.89050564,98.011,97.961,4.36662546]
[1770143393190,3.89050564,98.059,98.001,4.36662546]
[1770143393790,9.37845677,98.05,98.001,4.36662546]
[1770143393966,9.37845677,98.03,97.983,4.19661328]
[1770143395580,3.89050564,98.04,97.991,4.19661328]
[1770143395770,13.26896241,98.04,97.991,4.19661328]
[1770143396090,9.37845677,98.03,97.991,4.19661328]
[1770143396268,9.37845677,98.03,97.942,28.38]
[1770143396269,9.37845677,98.02,97.978,4.19661328]
[1770143396884,9.37845677,98.04,97.981,4.19661328]
[1770143397090,9.37845677,98.03,97.981,4.19661328]
[1770143397295,13.26896241,98.03,97.981,4.19661328]
[1770143397491,9.37845677,98.04,97.981,4.19661328]
[1770143397676,3.89050564,98.043,97.981,4.19661328]
[1770143397871,9.37845677,98.03,97.981,4.19661328]
[1770143398792,9.37845677,98.04,97.981,4.19661328]
[1770143398992,9.37845677,98.04,97.991,4.19661328]
[1770143399386,3.89050564,98.043,97.991,4.19661328]
[1770143399589,0.2,98.08,98.021,4.19661328]
[1770143399590,3.89050564,98.079,98.021,4.19661328]
[1770143399787,3.89050564,98.069,98.021,4.19661328]
[1770143400301,9.37845677,98.04,98.001,4.19661328]
[1770143400681,3.89050564,98.047,98.001,4.19661328]
[1770143400888,9.37845677,98.02,97.981,4.19661328]
[1770143401089,9.37845677,98.01,97.961,4.19661328]
[1770143401277,0.03890505,98.019,97.961,4.19661328]
[1770143401672,3.89050564,98.009,97.95,9.37845677]
[1770143401878,9.57845677,98.08,97.897,4.48035098]
[1770143401879,9.37845677,97.97,97.897,4.48035098]
[1770143402078,9.37845677,97.98,97.921,4.48035098]
[1770143402281,9.37845677,98.01,97.951,4.48035098]
[1770143402479,9.37845677,98.02,97.961,4.48035098]
[1770143402676,9.37845677,98.05,98.0,9.37845677]
[1770143402879,9.37845677,98.01,97.963,4.48035098]
[1770143403080,9.37845677,98.01,97.96,9.37845677]
[1770143403081,9.37845677,97.99,97.919,4.48035098]
[1770143403281,9.37845677,97.98,97.931,4.48035098]
[1770143403510,4.27527085,98.018,97.941,4.48035098]
[1770143403511,9.37845677,97.99,97.941,4.48035098]
[1770143404202,0.03890505,98.004,97.941,4.48035098]
[1770143404408,9.37845677,97.99,97.941,4.48035098]
[1770143404603,9.37845677,97.97,97.941,4.48035098]
[1770143404799,9.37845677,97.97,97.84,9.37845677]
[1770143404800,9.37845677,97.96,97.912,4.48035098]
[1770143405107,9.37845677,97.94,97.899,4.48035098]
[1770143405317,9.37845677,97.91,97.871,5.29613465]
[1770143405486,4.27527085,97.949,97.872,4.49980349]
[1770143405812,4.27527085,97.967,97.865,4.49980349]
[1770143405988,11.34176828,97.97,97.83,5.44186316]
[1770143405989,9.37845677,97.87,97.83,5.44186316]
[1770143406190,4.43799477,97.825,97.749,4.49980349]
[1770143406595,9.37845677,97.79,97.751,4.49980349]
[1770143406798,4.43799477,97.825,97.751,4.49980349]
[1770143407043,4.43799477,97.825,97.791,4.49980349]
[1770143407348,8.02312364,97.86,97.82,9.37845677]
[1770143407508,4.39458951,97.859,97.8,9.37845677]
[1770143407834,4.39458951,97.859,97.82,9.37845677]
[1770143408129,4.39458951,97.859,97.81,9.37845677]
[1770143408430,4.39458951,97.839,97.79,9.37845677]
[1770143408733,4.27527085,97.869,97.782,4.19661328]
[1770143408734,4.39458951,97.829,97.782,4.19661328]
[1770143408915,4.39458951,97.861,97.81,9.37845677]
[1770143409230,4.39458951,97.909,97.851,4.19661328]
[1770143409406,4.39458951,97.909,97.819,5.36086188]
[1770143409407,4.39458951,97.909,97.86,9.37845677]
[1770143409603,4.39458951,97.909,97.795,10.22544863]
[1770143409604,4.39458951,97.879,97.818,4.19661328]
[1770143409830,4.39458951,97.869,97.83,9.37845677]
[1770143410312,4.39458951,97.869,97.82,9.37845677]
[1770143410513,4.39458951,97.884,97.84,9.37845677]
[1770143410733,28.38,97.979,97.87,9.37845677]
[1770143410734,4.39458951,97.914,97.87,9.37845677]
[1770143410912,4.39458951,97.914,97.88,9.37845677]
[1770143411115,4.39458951,97.914,97.851,4.19661328]
[1770143411315,4.39458951,97.909,97.86,9.37845677]
[1770143411522,4.39458951,97.909,97.87,9.37845677]
[1770143411706,4.39458951,97.909,97.86,9.37845677]